[Event "Titled Tuesday Blitz January 17 Early 2023"]
[White "Vaglio Munoz, Jaime"]
[Black "Jimenez, Joaquin"]
[WhiteFideId "6500145"]
[BlackFideId "109860"]
[WhiteElo "2174"]
[BlackElo "2195"]
[Result "0-1"]
[Round "09"]
[TimeControl "180+2"]
[Date "2023.01.17"]
[WhiteClock "0:01:11"]
[BlackClock "0:00:17"]

1. d4 {[%clk 0:03:00]}  Nf6 {[%clk 0:02:59]} 2. c4 {[%clk 0:03:01]}  g6 {[%clk 0:02:59]} 3. g4 {[%clk 0:03:00]}  d5 {[%clk 0:02:45]} 4. g5 {[%clk 0:02:58]}  Ne4 {[%clk 0:02:43]} 5. cxd5 {[%clk 0:02:57]}  Qxd5 {[%clk 0:02:38]} 6. Bg2 {[%clk 0:02:54]}  Qa5+ {[%clk 0:02:34]} 7. Nd2 {[%clk 0:02:51]}  Nxg5 {[%clk 0:02:13]} 8. h4 {[%clk 0:02:47]}  Ne6 {[%clk 0:02:10]} 9. d5 {[%clk 0:02:45]}  Nf4 {[%clk 0:02:09]} 10. Bf3 {[%clk 0:02:42]}  Nxd5 {[%clk 0:02:06]} 11. a3 {[%clk 0:02:41]}  Bg7 {[%clk 0:02:04]} 12. Rb1 {[%clk 0:02:34]}  Nf6 {[%clk 0:01:43]} 13. b4 {[%clk 0:02:30]}  Qf5 {[%clk 0:01:40]} 14. e4 {[%clk 0:02:27]}  Qd7 {[%clk 0:01:36]} 15. Bb2 {[%clk 0:02:20]}  O-O {[%clk 0:01:35]} 16. Ne2 {[%clk 0:02:20]}  Nc6 {[%clk 0:01:34]} 17. Nc4 {[%clk 0:02:14]}  Qxd1+ {[%clk 0:01:26]} 18. Rxd1 {[%clk 0:02:15]}  Be6 {[%clk 0:01:24]} 19. Ne3 {[%clk 0:02:10]}  Rfd8 {[%clk 0:01:21]} 20. Nf4 {[%clk 0:02:03]}  Bb3 {[%clk 0:01:14]} 21. Rc1 {[%clk 0:01:59]}  Bh6 {[%clk 0:01:07]} 22. Nfd5 {[%clk 0:01:54]}  Bxe3 {[%clk 0:00:44]} 23. Nxf6+ {[%clk 0:01:49]}  exf6 {[%clk 0:00:43]} 24. fxe3 {[%clk 0:01:49]}  Ne5 {[%clk 0:00:42]} 25. Bxe5 {[%clk 0:01:43]}  fxe5 {[%clk 0:00:42]} 26. Rxc7 {[%clk 0:01:43]}  b6 {[%clk 0:00:34]} 27. Ke2 {[%clk 0:01:39]}  a5 {[%clk 0:00:33]} 28. b5 {[%clk 0:01:38]}  Rac8 {[%clk 0:00:30]} 29. Rhc1 {[%clk 0:01:37]}  Rxc7 {[%clk 0:00:26]} 30. Rxc7 {[%clk 0:01:38]}  Ba4 {[%clk 0:00:20]} 31. Kf2 {[%clk 0:01:36]}  Bxb5 {[%clk 0:00:20]} 32. Rb7 {[%clk 0:01:37]}  Rd6 {[%clk 0:00:20]} 33. h5 {[%clk 0:01:36]}  Kg7 {[%clk 0:00:20]} 34. Bd1 {[%clk 0:01:30]}  Bd3 {[%clk 0:00:18]} 35. Bb3 {[%clk 0:01:30]}  Rf6+ {[%clk 0:00:16]} 36. Ke1 {[%clk 0:01:29]}  Bxe4 {[%clk 0:00:16]} 37. a4 {[%clk 0:01:29]}  Bxb7 {[%clk 0:00:16]} 38. hxg6 {[%clk 0:01:27]}  hxg6 {[%clk 0:00:16]} 39. Ke2 {[%clk 0:01:27]}  Rd6 {[%clk 0:00:15]} 40. Bc4 {[%clk 0:01:25]}  Bd5 {[%clk 0:00:16]} 41. Bb5 {[%clk 0:01:24]}  e4 {[%clk 0:00:16]} 42. Kd2 {[%clk 0:01:24]}  Kf6 {[%clk 0:00:16]} 43. Kc3 {[%clk 0:01:25]}  Ke5 {[%clk 0:00:16]} 44. Be8 {[%clk 0:01:24]}  Bc6 {[%clk 0:00:16]} 45. Bxf7 {[%clk 0:01:23]}  Bxa4 {[%clk 0:00:16]} 46. Bxg6 {[%clk 0:01:21]}  b5 {[%clk 0:00:17]} 47. Bh5 {[%clk 0:01:21]}  Rd3+ {[%clk 0:00:17]} 48. Kb2 {[%clk 0:01:21]}  Rxe3 {[%clk 0:00:17]} 49. Bg4 {[%clk 0:01:19]}  Kd4 {[%clk 0:00:18]} 50. Kc1 {[%clk 0:01:17]}  Rg3 {[%clk 0:00:17]} 51. Bh5 {[%clk 0:01:17]}  Rg2 {[%clk 0:00:18]} 52. Kb1 {[%clk 0:01:17]}  Rh2 {[%clk 0:00:17]} 53. Bg4 {[%clk 0:01:16]}  Kc3 {[%clk 0:00:18]} 54. Bd1 {[%clk 0:01:11]}  Bxd1 {[%clk 0:00:17]} 55. Ka1 {[%clk 0:01:11]}  Bb3 {[%clk 0:00:17]} 56. Kb1 {[%clk 0:01:11]}  Rh1# {[%clk 0:00:17]} 0-1


[Site "https://www.chess.com"]

[Event "Titled Tuesday Blitz January 17 Early 2023"]
[White "Warchol, Kamil"]
[Black "Goltseva, Ekaterina"]
[WhiteFideId "21858241"]
[BlackFideId "24173770"]
[WhiteElo "2173"]
[BlackElo "2283"]
[Result "0-1"]
[Round "09"]
[TimeControl "180+2"]
[Date "2023.01.17"]
[WhiteClock "0:00:01"]
[BlackClock "0:00:17"]

1. e4 {[%clk 0:02:52]}  e6 {[%clk 0:02:59]} 2. d4 {[%clk 0:02:51]}  d5 {[%clk 0:02:59]} 3. Nd2 {[%clk 0:02:50]}  Nc6 {[%clk 0:02:52]} 4. Ngf3 {[%clk 0:02:31]}  dxe4 {[%clk 0:02:44]} 5. Nxe4 {[%clk 0:02:30]}  Nf6 {[%clk 0:02:43]} 6. Bd3 {[%clk 0:02:12]}  Be7 {[%clk 0:02:31]} 7. O-O {[%clk 0:02:06]}  O-O {[%clk 0:02:28]} 8. c3 {[%clk 0:02:03]}  b6 {[%clk 0:02:23]} 9. Qe2 {[%clk 0:01:56]}  Bb7 {[%clk 0:02:21]} 10. Re1 {[%clk 0:01:55]}  Re8 {[%clk 0:02:06]} 11. Neg5 {[%clk 0:01:51]}  Bd6 {[%clk 0:01:40]} 12. b4 {[%clk 0:01:07]}  e5 {[%clk 0:01:34]} 13. d5 {[%clk 0:01:00]}  Ne7 {[%clk 0:01:28]} 14. c4 {[%clk 0:00:37]}  h6 {[%clk 0:01:11]} 15. Ne4 {[%clk 0:00:23]}  Nxe4 {[%clk 0:01:10]} 16. Bxe4 {[%clk 0:00:23]}  f5 {[%clk 0:01:04]} 17. Bc2 {[%clk 0:00:21]}  Bxb4 {[%clk 0:00:59]} 18. Bd2 {[%clk 0:00:16]}  Bxd2 {[%clk 0:00:58]} 19. Qxd2 {[%clk 0:00:15]}  e4 {[%clk 0:00:53]} 20. Nd4 {[%clk 0:00:14]}  Bc8 {[%clk 0:00:53]} 21. Qc3 {[%clk 0:00:08]}  Qd6 {[%clk 0:00:51]} 22. Nb5 {[%clk 0:00:08]}  Qc5 {[%clk 0:00:47]} 23. a4 {[%clk 0:00:05]}  c6 {[%clk 0:00:40]} 24. dxc6 {[%clk 0:00:04]}  Qxc6 {[%clk 0:00:38]} 25. Rad1 {[%clk 0:00:04]}  Bb7 {[%clk 0:00:33]} 26. Nd6 {[%clk 0:00:04]}  Red8 {[%clk 0:00:33]} 27. Nxb7 {[%clk 0:00:04]}  Qxb7 {[%clk 0:00:34]} 28. Bb3 {[%clk 0:00:04]}  Kh7 {[%clk 0:00:32]} 29. Qe5 {[%clk 0:00:04]}  Rac8 {[%clk 0:00:26]} 30. g3 {[%clk 0:00:03]}  Rc5 {[%clk 0:00:24]} 31. Qe6 {[%clk 0:00:03]}  Rxd1 {[%clk 0:00:19]} 32. Rxd1 {[%clk 0:00:04]}  Rc7 {[%clk 0:00:19]} 33. Rd6 {[%clk 0:00:04]}  Qc8 {[%clk 0:00:18]} 34. Qxc8 {[%clk 0:00:02]}  Nxc8 {[%clk 0:00:18]} 35. Rd5 {[%clk 0:00:02]}  g6 {[%clk 0:00:18]} 36. Re5 {[%clk 0:00:02]}  Nd6 {[%clk 0:00:18]} 37. Rd5 {[%clk 0:00:01]}  Nb7 {[%clk 0:00:17]} 38. Re5 {[%clk 0:00:01]}  Nc5 {[%clk 0:00:18]} 39. Bc2 {[%clk 0:00:01]}  Kg7 {[%clk 0:00:18]} 40. Rd5 {[%clk 0:00:01]}  Kf6 {[%clk 0:00:18]} 41. Rd6+ {[%clk 0:00:02]}  Kf7 {[%clk 0:00:19]} 42. Rd5 {[%clk 0:00:02]}  Rd7 {[%clk 0:00:19]} 43. Kf1 {[%clk 0:00:01]}  Rxd5 {[%clk 0:00:19]} 44. cxd5 {[%clk 0:00:02]}  Ke7 {[%clk 0:00:20]} 45. Bb1 {[%clk 0:00:02]}  Kd6 {[%clk 0:00:20]} 46. a5 {[%clk 0:00:02]}  Kxd5 {[%clk 0:00:20]} 47. axb6 {[%clk 0:00:03]}  axb6 {[%clk 0:00:20]} 48. Ba2+ {[%clk 0:00:03]}  Ke5 {[%clk 0:00:21]} 49. Ke2 {[%clk 0:00:04]}  b5 {[%clk 0:00:21]} 50. Ke3 {[%clk 0:00:04]}  b4 {[%clk 0:00:22]} 51. f4+ {[%clk 0:00:04]}  exf3 {[%clk 0:00:21]} 52. Kxf3 {[%clk 0:00:05]}  b3 {[%clk 0:00:22]} 53. Bb1 {[%clk 0:00:05]}  Kd4 {[%clk 0:00:22]} 54. Kf4 {[%clk 0:00:04]}  Ne4 {[%clk 0:00:21]} 55. g4 {[%clk 0:00:02]}  Nd2 {[%clk 0:00:18]} 56. gxf5 {[%clk 0:00:02]}  g5+ {[%clk 0:00:17]} 57. Kg4 {[%clk 0:00:01]}  Ke5 {[%clk 0:00:17]} 0-1


[Site "https://www.chess.com"]

[Event "Titled Tuesday Blitz January 17 Early 2023"]
[White "Khamdamova, Afruza"]
[Black "Jiganchine, Roman"]
[WhiteFideId "14210444"]
[BlackFideId "2603667"]
[WhiteElo "2162"]
[BlackElo "2205"]
[Result "1-0"]
[Round "09"]
[TimeControl "180+2"]
[Date "2023.01.17"]
[WhiteClock "0:00:22"]
[BlackClock "0:00:02"]

1. e4 {[%clk 0:03:00]}  e5 {[%clk 0:02:55]} 2. Nf3 {[%clk 0:03:00]}  Nc6 {[%clk 0:02:51]} 3. Bb5 {[%clk 0:02:59]}  a6 {[%clk 0:02:45]} 4. Ba4 {[%clk 0:02:58]}  b5 {[%clk 0:02:45]} 5. Bb3 {[%clk 0:02:57]}  Na5 {[%clk 0:02:45]} 6. O-O {[%clk 0:02:17]}  Bb7 {[%clk 0:02:42]} 7. Nxe5 {[%clk 0:02:16]}  Nxb3 {[%clk 0:02:38]} 8. axb3 {[%clk 0:02:15]}  Nf6 {[%clk 0:02:38]} 9. d3 {[%clk 0:02:15]}  d5 {[%clk 0:02:38]} 10. exd5 {[%clk 0:02:14]}  Qxd5 {[%clk 0:02:37]} 11. Nf3 {[%clk 0:02:14]}  O-O-O {[%clk 0:02:36]} 12. Nc3 {[%clk 0:02:13]}  Qh5 {[%clk 0:02:36]} 13. Bf4 {[%clk 0:02:08]}  g5 {[%clk 0:02:27]} 14. Nxg5 {[%clk 0:02:07]}  Qg6 {[%clk 0:02:25]} 15. Qe2 {[%clk 0:01:33]}  Rg8 {[%clk 0:02:14]} 16. f3 {[%clk 0:01:22]}  Bc5+ {[%clk 0:02:05]} 17. Kh1 {[%clk 0:01:22]}  Rde8 {[%clk 0:02:02]} 18. Nge4 {[%clk 0:01:20]}  Nh5 {[%clk 0:01:57]} 19. Qd2 {[%clk 0:01:05]}  Bd4 {[%clk 0:01:36]} 20. g4 {[%clk 0:00:49]}  Nxf4 {[%clk 0:01:07]} 21. Qxf4 {[%clk 0:00:49]}  h5 {[%clk 0:01:00]} 22. Qf5+ {[%clk 0:00:45]}  Qxf5 {[%clk 0:00:51]} 23. gxf5 {[%clk 0:00:45]}  b4 {[%clk 0:00:47]} 24. Ne2 {[%clk 0:00:43]}  Bxb2 {[%clk 0:00:45]} 25. Ra5 {[%clk 0:00:43]}  Be5 {[%clk 0:00:33]} 26. Rg1 {[%clk 0:00:34]}  Rxg1+ {[%clk 0:00:31]} 27. Kxg1 {[%clk 0:00:34]}  Rg8+ {[%clk 0:00:31]} 28. Kh1 {[%clk 0:00:34]}  Bb2 {[%clk 0:00:28]} 29. f6 {[%clk 0:00:32]}  Rg6 {[%clk 0:00:24]} 30. Rxh5 {[%clk 0:00:31]}  Bxf6 {[%clk 0:00:23]} 31. Nf4 {[%clk 0:00:30]}  Bxe4 {[%clk 0:00:20]} 32. fxe4 {[%clk 0:00:30]}  Rg8 {[%clk 0:00:18]} 33. Rf5 {[%clk 0:00:30]}  Bd4 {[%clk 0:00:17]} 34. h4 {[%clk 0:00:30]}  Rg1+ {[%clk 0:00:17]} 35. Kh2 {[%clk 0:00:30]}  Rc1 {[%clk 0:00:17]} 36. Rxf7 {[%clk 0:00:29]}  Be5 {[%clk 0:00:16]} 37. Kh3 {[%clk 0:00:28]}  Rxc2 {[%clk 0:00:14]} 38. Nd5 {[%clk 0:00:24]}  Rh2+ {[%clk 0:00:13]} 39. Kg4 {[%clk 0:00:24]}  Rg2+ {[%clk 0:00:13]} 40. Kf3 {[%clk 0:00:24]}  Rh2 {[%clk 0:00:11]} 41. Re7 {[%clk 0:00:20]}  Bd6 {[%clk 0:00:10]} 42. Re8+ {[%clk 0:00:20]}  Kb7 {[%clk 0:00:10]} 43. Kg4 {[%clk 0:00:21]}  Rg2+ {[%clk 0:00:09]} 44. Kf5 {[%clk 0:00:21]}  Rf2+ {[%clk 0:00:09]} 45. Ke6 {[%clk 0:00:21]}  Rg2 {[%clk 0:00:09]} 46. Rh8 {[%clk 0:00:22]}  Rg6+ {[%clk 0:00:09]} 47. Nf6 {[%clk 0:00:22]}  Rg3 {[%clk 0:00:06]} 48. h5 {[%clk 0:00:23]}  Rxd3 {[%clk 0:00:06]} 49. e5 {[%clk 0:00:23]}  Re3 {[%clk 0:00:04]} 50. Nd7 {[%clk 0:00:23]}  Kc6 {[%clk 0:00:02]} 51. h6 {[%clk 0:00:22]} 1-0


[Site "https://www.chess.com"]

[Event "Titled Tuesday Blitz January 17 Early 2023"]
[White "Shuvalov, Evgenij"]
[Black "Topalov, Aleksandar"]
[WhiteFideId "4187237"]
[BlackFideId "925659"]
[WhiteElo "2038"]
[BlackElo "2233"]
[Result "1-0"]
[Round "09"]
[TimeControl "180+2"]
[Date "2023.01.17"]
[WhiteClock "0:00:20"]
[BlackClock "0:01:01"]

1. d4 {[%clk 0:03:00]}  Nf6 {[%clk 0:02:58]} 2. c4 {[%clk 0:03:00]}  c5 {[%clk 0:02:58]} 3. d5 {[%clk 0:03:00]}  d6 {[%clk 0:02:58]} 4. Nc3 {[%clk 0:02:59]}  g6 {[%clk 0:02:58]} 5. e4 {[%clk 0:02:59]}  Bg7 {[%clk 0:02:59]} 6. h3 {[%clk 0:02:58]}  O-O {[%clk 0:02:58]} 7. Nf3 {[%clk 0:02:58]}  Na6 {[%clk 0:02:58]} 8. Bd3 {[%clk 0:02:58]}  Nc7 {[%clk 0:02:59]} 9. O-O {[%clk 0:02:58]}  e5 {[%clk 0:02:58]} 10. Ne1 {[%clk 0:02:50]}  Nh5 {[%clk 0:02:56]} 11. Be2 {[%clk 0:02:47]}  Nf4 {[%clk 0:02:55]} 12. Nd3 {[%clk 0:02:35]}  Qh4 {[%clk 0:02:50]} 13. Bxf4 {[%clk 0:02:05]}  exf4 {[%clk 0:02:50]} 14. e5 {[%clk 0:02:02]}  dxe5 {[%clk 0:02:44]} 15. Nxc5 {[%clk 0:02:00]}  b6 {[%clk 0:02:28]} 16. d6 {[%clk 0:01:57]}  bxc5 {[%clk 0:02:21]} 17. dxc7 {[%clk 0:01:57]}  Be6 {[%clk 0:02:08]} 18. Nb5 {[%clk 0:01:32]}  e4 {[%clk 0:02:04]} 19. Nd6 {[%clk 0:01:14]}  f3 {[%clk 0:02:04]} 20. gxf3 {[%clk 0:01:10]}  Bxh3 {[%clk 0:02:04]} 21. Nxe4 {[%clk 0:01:03]}  Be5 {[%clk 0:01:55]} 22. Bd3 {[%clk 0:00:39]}  f5 {[%clk 0:01:29]} 23. Re1 {[%clk 0:00:33]}  Rae8 {[%clk 0:01:12]} 24. Qd2 {[%clk 0:00:25]}  fxe4 {[%clk 0:01:11]} 25. Rxe4 {[%clk 0:00:25]}  Bf5 {[%clk 0:01:01]} 26. Rxh4 {[%clk 0:00:20]} 1-0


[Site "https://www.chess.com"]

[Event "Titled Tuesday Blitz January 17 Early 2023"]
[White "Novikov, Evgenij"]
[Black "Fernandez Siles, Luis"]
[WhiteFideId "4125380"]
[BlackFideId "2209420"]
[WhiteElo "2276"]
[BlackElo "2218"]
[Result "1-0"]
[Round "09"]
[TimeControl "180+2"]
[Date "2023.01.17"]
[WhiteClock "0:00:14"]
[BlackClock "0:00:01"]

1. e4 {[%clk 0:02:59]}  c5 {[%clk 0:02:59]} 2. d4 {[%clk 0:02:58]}  cxd4 {[%clk 0:02:58]} 3. c3 {[%clk 0:02:58]}  Nf6 {[%clk 0:02:58]} 4. e5 {[%clk 0:02:58]}  Nd5 {[%clk 0:02:58]} 5. cxd4 {[%clk 0:02:58]}  Nc6 {[%clk 0:02:58]} 6. Nc3 {[%clk 0:02:57]}  Nxc3 {[%clk 0:02:55]} 7. bxc3 {[%clk 0:02:58]}  d5 {[%clk 0:02:55]} 8. Bd3 {[%clk 0:02:56]}  g6 {[%clk 0:02:50]} 9. Nf3 {[%clk 0:02:53]}  Bg4 {[%clk 0:02:48]} 10. h3 {[%clk 0:02:52]}  Bxf3 {[%clk 0:02:47]} 11. Qxf3 {[%clk 0:02:53]}  Bg7 {[%clk 0:02:47]} 12. h4 {[%clk 0:02:51]}  f6 {[%clk 0:02:30]} 13. h5 {[%clk 0:02:42]}  fxe5 {[%clk 0:02:19]} 14. hxg6 {[%clk 0:02:41]}  Rf8 {[%clk 0:01:43]} 15. Qh5 {[%clk 0:02:39]}  h6 {[%clk 0:01:38]} 16. Bxh6 {[%clk 0:02:24]}  Rh8 {[%clk 0:01:34]} 17. Bxg7 {[%clk 0:01:19]}  Rxh5 {[%clk 0:01:32]} 18. Rxh5 {[%clk 0:01:20]}  Qa5 {[%clk 0:01:23]} 19. Rc1 {[%clk 0:00:57]}  O-O-O {[%clk 0:01:19]} 20. dxe5 {[%clk 0:00:49]}  d4 {[%clk 0:00:34]} 21. Bf5+ {[%clk 0:00:43]}  Kb8 {[%clk 0:00:30]} 22. e6 {[%clk 0:00:43]}  dxc3 {[%clk 0:00:25]} 23. Bxc3 {[%clk 0:00:43]}  Qa3 {[%clk 0:00:23]} 24. Bd2 {[%clk 0:00:39]}  Qd6 {[%clk 0:00:20]} 25. Rd1 {[%clk 0:00:33]}  Nd4 {[%clk 0:00:20]} 26. Bg4 {[%clk 0:00:30]}  Nxe6 {[%clk 0:00:17]} 27. Bf4 {[%clk 0:00:23]}  Nxf4 {[%clk 0:00:14]} 28. Rxd6 {[%clk 0:00:22]}  exd6 {[%clk 0:00:14]} 29. Rg5 {[%clk 0:00:16]}  Re8+ {[%clk 0:00:05]} 30. Kf1 {[%clk 0:00:16]}  Rg8 {[%clk 0:00:02]} 31. g7 {[%clk 0:00:14]}  Kc7 {[%clk 0:00:01]} 32. g3 {[%clk 0:00:14]} 1-0


[Site "https://www.chess.com"]

[Event "Titled Tuesday Blitz January 17 Early 2023"]
[White "Vasques, Antonio Pedro Freixial"]
[Black "Sanchez, Robert"]
[WhiteFideId "1908332"]
[BlackFideId "2034360"]
[WhiteElo "2214"]
[BlackElo "1966"]
[Result "0-1"]
[Round "09"]
[TimeControl "180+2"]
[Date "2023.01.17"]
[WhiteClock "0:00:33"]
[BlackClock "0:00:46"]

1. Nf3 {[%clk 0:02:09]}  d5 {[%clk 0:02:55]} 2. g3 {[%clk 0:02:09]}  e6 {[%clk 0:02:55]} 3. Bg2 {[%clk 0:02:10]}  Nf6 {[%clk 0:02:56]} 4. O-O {[%clk 0:02:10]}  Be7 {[%clk 0:02:57]} 5. c4 {[%clk 0:02:11]}  c6 {[%clk 0:02:57]} 6. d4 {[%clk 0:02:10]}  O-O {[%clk 0:02:57]} 7. Nbd2 {[%clk 0:02:08]}  Nbd7 {[%clk 0:02:56]} 8. Qc2 {[%clk 0:02:09]}  b6 {[%clk 0:02:56]} 9. e4 {[%clk 0:02:06]}  dxe4 {[%clk 0:02:50]} 10. Nxe4 {[%clk 0:02:07]}  Bb7 {[%clk 0:02:50]} 11. Rd1 {[%clk 0:02:04]}  Qc8 {[%clk 0:02:45]} 12. Nxf6+ {[%clk 0:01:59]}  Nxf6 {[%clk 0:02:45]} 13. c5 {[%clk 0:02:00]}  Nd5 {[%clk 0:02:44]} 14. Ne5 {[%clk 0:02:00]}  f6 {[%clk 0:02:35]} 15. Nd3 {[%clk 0:01:57]}  Qe8 {[%clk 0:02:29]} 16. Nf4 {[%clk 0:01:38]}  Nxf4 {[%clk 0:02:04]} 17. Bxf4 {[%clk 0:01:39]}  e5 {[%clk 0:02:05]} 18. Be3 {[%clk 0:01:27]}  exd4 {[%clk 0:02:02]} 19. Bxd4 {[%clk 0:01:28]}  Bd8 {[%clk 0:01:48]} 20. Rd2 {[%clk 0:01:18]}  Rc8 {[%clk 0:01:43]} 21. Rad1 {[%clk 0:01:16]}  Qf7 {[%clk 0:01:41]} 22. b3 {[%clk 0:01:14]}  f5 {[%clk 0:01:36]} 23. Bf1 {[%clk 0:01:10]}  Kh8 {[%clk 0:01:35]} 24. f4 {[%clk 0:01:08]}  Bf6 {[%clk 0:01:32]} 25. Bf2 {[%clk 0:01:03]}  Rcd8 {[%clk 0:01:17]} 26. Bc4 {[%clk 0:01:01]}  Qg6 {[%clk 0:01:14]} 27. cxb6 {[%clk 0:00:56]}  axb6 {[%clk 0:01:14]} 28. Bxb6 {[%clk 0:00:57]}  Rxd2 {[%clk 0:01:12]} 29. Qxd2 {[%clk 0:00:56]}  c5 {[%clk 0:01:10]} 30. Bd5 {[%clk 0:00:56]}  Bd4+ {[%clk 0:01:07]} 31. Kf1 {[%clk 0:00:48]}  Qxb6 {[%clk 0:00:59]} 32. Qg2 {[%clk 0:00:40]}  Qa6+ {[%clk 0:00:49]} 33. Ke1 {[%clk 0:00:35]}  Re8+ {[%clk 0:00:47]} 34. Kd2 {[%clk 0:00:33]}  Qxa2+ {[%clk 0:00:46]} 0-1


[Site "https://www.chess.com"]

[Event "Titled Tuesday Blitz January 17 Early 2023"]
[White "Buchenau, Frank"]
[Black "Nugumanov, Bakhtiyar"]
[WhiteFideId "4604350"]
[BlackFideId "13701797"]
[WhiteElo "2222"]
[BlackElo "2316"]
[Result "1-0"]
[Round "09"]
[TimeControl "180+2"]
[Date "2023.01.17"]
[WhiteClock "0:00:07"]
[BlackClock "0:00:01"]

1. e4 {[%clk 0:03:00]}  d6 {[%clk 0:02:53]} 2. d4 {[%clk 0:03:00]}  Nf6 {[%clk 0:02:53]} 3. Nc3 {[%clk 0:03:00]}  e5 {[%clk 0:02:51]} 4. dxe5 {[%clk 0:03:00]}  dxe5 {[%clk 0:02:52]} 5. Qxd8+ {[%clk 0:03:00]}  Kxd8 {[%clk 0:02:53]} 6. Bc4 {[%clk 0:02:58]}  Ke8 {[%clk 0:02:52]} 7. Nf3 {[%clk 0:02:57]}  Bd6 {[%clk 0:02:39]} 8. Bg5 {[%clk 0:02:56]}  Nbd7 {[%clk 0:02:40]} 9. O-O-O {[%clk 0:02:56]}  a6 {[%clk 0:02:40]} 10. Rhe1 {[%clk 0:02:54]}  b5 {[%clk 0:02:39]} 11. Bb3 {[%clk 0:02:47]}  h6 {[%clk 0:02:39]} 12. Bh4 {[%clk 0:02:37]}  Bb7 {[%clk 0:02:38]} 13. Nd5 {[%clk 0:02:33]}  a5 {[%clk 0:01:55]} 14. Nxf6+ {[%clk 0:02:25]}  gxf6 {[%clk 0:01:49]} 15. Bd5 {[%clk 0:02:15]}  Bxd5 {[%clk 0:01:47]} 16. Rxd5 {[%clk 0:02:12]}  Rg8 {[%clk 0:01:45]} 17. Bg3 {[%clk 0:02:04]}  b4 {[%clk 0:01:36]} 18. Nh4 {[%clk 0:01:59]}  Nb6 {[%clk 0:01:36]} 19. Rd3 {[%clk 0:01:56]}  Rd8 {[%clk 0:01:27]} 20. Red1 {[%clk 0:01:47]}  h5 {[%clk 0:00:54]} 21. Nf5 {[%clk 0:01:45]}  Be7 {[%clk 0:00:49]} 22. Rxd8+ {[%clk 0:01:37]}  Bxd8 {[%clk 0:00:50]} 23. f3 {[%clk 0:01:17]}  Nc4 {[%clk 0:00:48]} 24. b3 {[%clk 0:01:06]}  Nb6 {[%clk 0:00:31]} 25. Kb2 {[%clk 0:01:02]}  Be7 {[%clk 0:00:31]} 26. Rd2 {[%clk 0:00:57]}  a4 {[%clk 0:00:31]} 27. c4 {[%clk 0:00:47]}  bxc3+ {[%clk 0:00:30]} 28. Kxc3 {[%clk 0:00:47]}  axb3 {[%clk 0:00:31]} 29. Kxb3 {[%clk 0:00:44]}  Nd7 {[%clk 0:00:28]} 30. Bh4 {[%clk 0:00:26]}  Nc5+ {[%clk 0:00:27]} 31. Kb2 {[%clk 0:00:25]}  Ne6 {[%clk 0:00:25]} 32. g3 {[%clk 0:00:24]}  Ng5 {[%clk 0:00:14]} 33. Bxg5 {[%clk 0:00:21]}  fxg5 {[%clk 0:00:15]} 34. a4 {[%clk 0:00:21]}  g4 {[%clk 0:00:11]} 35. Rd3 {[%clk 0:00:18]}  Bc5 {[%clk 0:00:11]} 36. Kb3 {[%clk 0:00:15]}  Bb6 {[%clk 0:00:09]} 37. Kb4 {[%clk 0:00:15]}  gxf3 {[%clk 0:00:09]} 38. Rxf3 {[%clk 0:00:14]}  Rg4 {[%clk 0:00:10]} 39. a5 {[%clk 0:00:12]}  Rxe4+ {[%clk 0:00:10]} 40. Kb5 {[%clk 0:00:12]}  Ba7 {[%clk 0:00:08]} 41. Rc3 {[%clk 0:00:12]}  Re1 {[%clk 0:00:06]} 42. Rxc7 {[%clk 0:00:11]}  Rb1+ {[%clk 0:00:05]} 43. Ka6 {[%clk 0:00:11]}  Bg1 {[%clk 0:00:04]} 44. Nd6+ {[%clk 0:00:10]}  Kd8 {[%clk 0:00:03]} 45. Rxf7 {[%clk 0:00:10]}  Bxh2 {[%clk 0:00:01]} 46. Rb7 {[%clk 0:00:07]} 1-0


[Site "https://www.chess.com"]

[Event "Titled Tuesday Blitz January 17 Early 2023"]
[White "I_KID_you_not"]
[Black "Albertini, Luca"]
[BlackFideId "847038"]
[WhiteElo "2332"]
[BlackElo "2084"]
[Result "1/2-1/2"]
[Round "09"]
[TimeControl "180+2"]
[Date "2023.01.17"]
[WhiteClock "0:00:21"]
[BlackClock "0:00:46"]

1. e4 {[%clk 0:03:00]}  c5 {[%clk 0:02:55]} 2. Nc3 {[%clk 0:03:00]}  Nc6 {[%clk 0:02:52]} 3. Bb5 {[%clk 0:03:01]}  Nd4 {[%clk 0:02:50]} 4. Nf3 {[%clk 0:03:02]}  a6 {[%clk 0:02:48]} 5. Bd3 {[%clk 0:03:01]}  d6 {[%clk 0:02:46]} 6. Nxd4 {[%clk 0:02:43]}  cxd4 {[%clk 0:02:47]} 7. Ne2 {[%clk 0:02:43]}  e5 {[%clk 0:02:45]} 8. c3 {[%clk 0:02:43]}  dxc3 {[%clk 0:02:42]} 9. dxc3 {[%clk 0:02:44]}  Nf6 {[%clk 0:02:43]} 10. c4 {[%clk 0:02:42]}  Be7 {[%clk 0:02:41]} 11. O-O {[%clk 0:02:41]}  Be6 {[%clk 0:02:42]} 12. b3 {[%clk 0:02:41]}  O-O {[%clk 0:02:41]} 13. Qd2 {[%clk 0:02:32]}  Rc8 {[%clk 0:02:40]} 14. Ba3 {[%clk 0:02:31]}  Qc7 {[%clk 0:02:39]} 15. Rfd1 {[%clk 0:02:25]}  Rfd8 {[%clk 0:02:39]} 16. h3 {[%clk 0:02:24]}  Ne8 {[%clk 0:02:35]} 17. Nc3 {[%clk 0:02:15]}  g6 {[%clk 0:02:33]} 18. Nd5 {[%clk 0:02:14]}  Bxd5 {[%clk 0:02:33]} 19. cxd5 {[%clk 0:02:14]}  Ng7 {[%clk 0:02:29]} 20. Rac1 {[%clk 0:02:12]}  Qd7 {[%clk 0:02:30]} 21. Qa5 {[%clk 0:02:08]}  f5 {[%clk 0:02:24]} 22. b4 {[%clk 0:01:58]}  f4 {[%clk 0:02:15]} 23. f3 {[%clk 0:01:54]}  Rxc1 {[%clk 0:01:54]} 24. Rxc1 {[%clk 0:01:53]}  Rc8 {[%clk 0:01:55]} 25. Rxc8+ {[%clk 0:01:50]}  Qxc8 {[%clk 0:01:56]} 26. b5 {[%clk 0:01:51]}  axb5 {[%clk 0:01:47]} 27. Qxb5 {[%clk 0:01:40]}  Qc3 {[%clk 0:01:47]} 28. Qxb7 {[%clk 0:01:33]}  Qxa3 {[%clk 0:01:25]} 29. Qxe7 {[%clk 0:01:31]}  Qxd3 {[%clk 0:01:25]} 30. Qd8+ {[%clk 0:01:24]}  Kf7 {[%clk 0:01:25]} 31. Qd7+ {[%clk 0:01:20]}  Kg8 {[%clk 0:01:18]} 32. Qd8+ {[%clk 0:01:17]}  Kf7 {[%clk 0:01:18]} 33. Qd7+ {[%clk 0:01:16]}  Kf8 {[%clk 0:01:18]} 34. Qxd6+ {[%clk 0:01:16]}  Kf7 {[%clk 0:01:16]} 35. Qxe5 {[%clk 0:01:15]}  Qe3+ {[%clk 0:01:06]} 36. Kh2 {[%clk 0:01:12]}  Nh5 {[%clk 0:01:07]} 37. d6 {[%clk 0:01:02]}  Qe1 {[%clk 0:00:57]} 38. Qe7+ {[%clk 0:01:01]}  Kg8 {[%clk 0:00:56]} 39. d7 {[%clk 0:00:20]}  Qg3+ {[%clk 0:00:44]} 40. Kg1 {[%clk 0:00:20]}  Qe1+ {[%clk 0:00:45]} 41. Kh2 {[%clk 0:00:20]}  Qg3+ {[%clk 0:00:45]} 42. Kg1 {[%clk 0:00:21]}  Qe1+ {[%clk 0:00:46]} 43. Kh2 {[%clk 0:00:21]} 1/2-1/2


[Site "https://www.chess.com"]